{"text_format":"1","workbook":"xlsx","n_sheets":4,"sheets":["Feuil1","Octobre","Feuil2","Feuil3"],"not_rendered":{"charts":0,"images":0,"macros":1,"external_links":0,"defined_names":0,"comments":0,"pivot_tables":0},"unopened":[],"bounds":{"document_bytes":16777216,"sheet_cells":100000,"rows_first":2000,"rows_last":500,"rows_between":2000,"halvings":0,"cell_chars":16384,"cell_head_chars":4096},"cells_cut":0,"cells_raw":0,"read":"whole","date_system":"1900"}

{"sheet":"Feuil1","index":0,"n_rows":69,"n_cols":44,"rows_kept":69,"cut":false,"hidden":false,"merged":[]}
[]
[]
[]
[]
[]
[]
[]
[]
[]
["Quadrigramme","Catégorie","Projet","Sous-Projet","Avenant","Phase","Activité","Role","Commentaire","TOTAL MOIS","2016-10-01","2016-10-02","2016-10-03","2016-10-04","2016-10-05","2016-10-06","2016-10-07","2016-10-08","2016-10-09","2016-10-10","2016-10-11","2016-10-12","2016-10-13","2016-10-14","2016-10-15","2016-10-16","2016-10-17","2016-10-18","2016-10-19","2016-10-20","2016-10-21","2016-10-22","2016-10-23","2016-10-24","2016-10-25","2016-10-26","2016-10-27","2016-10-28","2016-10-29","2016-10-30","2016-10-31","Domaine","SUPOC","PROJET"]
["AMER","E-Transverse","TV-PSI - Perturbations SI","TV-PSI-001 - Perturbations liées au SI AGORA","TV-PSI-001-AV-001 - Problèmes techniques","03 - Réalisation","Développements et tests unitaires","AP - Analyste Programmeur","Modifications et tests  {MIR Lot 2} (tout fonctionne très lentement)  [SUPOC-102277]\n",0.76,null,null,null,null,null,null,null,null,null,0.13,0.38,null,null,0.25,null,null,null,null,null,null,null,null,null,null,null,null,null,null,null,null,null,"PF","SUPOC-102277","MIR Lot 2"]
["AMER","E-Transverse","TV-PSI - Perturbations SI","TV-PSI-001 - Perturbations liées au SI AGORA","TV-PSI-001-AV-001 - Problèmes techniques","03 - Réalisation","Développements et tests unitaires","AP - Analyste Programmeur","Modifications et tests  {MIR Lot 2} (tout fonctionne très lentement)  [SUPOC-103679]\n",0.13,null,null,null,null,null,null,null,null,null,null,null,null,null,null,null,null,0.13,null,null,null,null,null,null,null,null,null,null,null,null,null,null,"PF","SUPOC-103679","MIR Lot 2"]
["AMER","E-Transverse","TV-PSI - Perturbations SI","TV-PSI-001 - Perturbations liées au SI AGORA","TV-PSI-001-AV-001 - Problèmes techniques","03 - Réalisation","Développements et tests unitaires","AP - Analyste Programmeur","Modifications et tests  {MIR Lot 3}  (indispo de la DB essai 77 pour faire tests [SUPOC-105792]\n",0.59,null,null,null,null,null,null,null,null,null,null,null,null,null,null,null,null,null,null,null,null,null,null,null,null,0.44,0.15,null,null,null,null,null,"PF","SUPOC-105792","MIR Lot 3"]
["CGAL","E-Transverse","TV-PSI - Perturbations SI","TV-PSI-001 - Perturbations liées au SI AGORA","TV-PSI-001-AV-001 - Problèmes techniques","09 - N/A","N/A","A - Analyste","[SUPOC-102277] {projet exemple}",0,null,null,null,null,null,null,null,null,null,null,0,null,null,null,null,null,null,null,null,null,null,null,null,null,null,null,null,null,null,null,null,"Autre","SUPOC-102277","projet exemple"]
["CMOR","E-Transverse","TV-PSI - Perturbations SI","TV-PSI-001 - Perturbations liées au SI AGORA","TV-PSI-001-AV-001 - Problèmes techniques","09 - N/A","N/A","A - Analyste","[SUPOC-102277] {projet exemple}",2.25,null,null,null,null,null,null,null,null,null,null,0.25,null,null,0.25,null,null,1,0.25,0.5,null,null,null,null,null,null,null,null,null,null,null,null,"PF","SUPOC-102277","projet exemple"]
["CPES","E-Transverse","TV-PSI - Perturbations SI","TV-PSI-001 - Perturbations liées au SI AGORA","TV-PSI-001-AV-001 - Problèmes techniques","09 - N/A","N/A","AP - Analyste Programmeur","PROJET {CDRCO LOT BALAI}\n[SUPOC-102277] : ralentissements pendant la qualification CDRCO TP, Citrix inutilisable le matin (plusieurs tentatives de connection,etc…) lenteur des mef. LA ME a prévenu qu'on aurait des soucis avec Citrix (cf Zben)",0.75,null,null,null,null,null,null,null,null,null,0.25,0.5,null,null,null,null,null,null,null,null,null,null,null,null,null,null,null,null,null,null,null,null,"PV","SUPOC-102277","CDRCO LOT BALAI"]
["DLEC","E-Transverse","TV-PSI - Perturbations SI","TV-PSI-001 - Perturbations liées au SI AGORA","TV-PSI-001-AV-001 - Problèmes techniques","03 - Réalisation","Développements et tests unitaires","A - Analyste","[SUPOC-102277] problème lenteur outils de développement : leteur dtbrlg, lncjcl,,, pour tests P2600 et P2610, projet {Taux demat}",0.75,null,null,null,null,null,null,null,null,null,null,0.5,0.25,null,null,null,null,null,null,null,null,null,null,null,null,null,null,null,null,null,null,null,"PF","SUPOC-102277","Taux demat"]
["DLEC","E-Transverse","TV-PSI - Perturbations SI","TV-PSI-001 - Perturbations liées au SI AGORA","TV-PSI-001-AV-001 - Problèmes techniques","03 - Réalisation","Développements et tests unitaires","A - Analyste","SUPOC-103679 problème d'accès aux données BDD de l'essai 77. Blocage des TO chaine P2610 (projet Taux demat)",1,null,null,null,null,null,null,null,null,null,null,null,null,null,0.5,null,null,0.5,null,null,null,null,null,null,null,null,null,null,null,null,null,null,"PF","S"]
["ECAL","E-Transverse","TV-PSI - Perturbations SI","TV-PSI-001 - Perturbations liées au SI AGORA","TV-PSI-001-AV-001 - Problèmes techniques","03 - Réalisation","Développements et tests unitaires","AP - Analyste Programmeur","[SUPOC-102277] {projet exemple}",0.75,null,null,null,null,null,null,null,null,null,null,0.25,null,null,0.25,null,null,null,null,null,null,0.25,null,null,null,null,null,null,null,null,null,null,"PV","SUPOC-102277","projet exemple"]
["FFIA","E-Transverse","TV-PSI - Perturbations SI","TV-PSI-001 - Perturbations liées au SI AGORA","TV-PSI-001-AV-001 - Problèmes techniques","09 - N/A","N/A","A - Analyste","[SUPOC-101547] {projet exemple} (bdd cmcd bloquée)",0,null,null,null,null,null,null,null,null,null,null,null,null,null,null,null,null,null,null,null,null,null,null,null,null,null,null,null,null,null,null,null,"EMA","SUPOC-101547","projet exemple"]
["FFIA","E-Transverse","TV-PSI - Perturbations SI","TV-PSI-001 - Perturbations liées au SI AGORA","TV-PSI-001-AV-001 - Problèmes techniques","09 - N/A","N/A","A - Analyste","Problèm lenteur eclipse\n[SUPOC-102277] {projet exemple}",0,null,null,null,null,null,null,null,null,null,null,null,null,null,null,null,null,null,null,null,null,null,null,null,null,null,null,null,null,null,null,null,"EMA","SUPOC-102277","projet exemple"]
["FFRA","E-Transverse","TV-PSI - Perturbations SI","TV-PSI-001 - Perturbations liées au SI AGORA","TV-PSI-001-AV-001 - Problèmes techniques","09 - N/A","N/A","AP - Analyste Programmeur","{SUPOC-102277] - {LURA} (hrdgesdem, hrdecgrepdem)",0.4,null,null,null,null,null,null,null,null,null,null,0.4,null,null,null,null,null,null,null,null,null,null,null,null,null,null,null,null,null,null,null,null,"RGCU","{SUPOC-102277","SUPOC-102277] - {LURA"]
["GSCH","E-Transverse","TV-PSI - Perturbations SI","TV-PSI-001 - Perturbations liées au SI AGORA","TV-PSI-001-AV-001 - Problèmes techniques","03 - Réalisation","Développements et tests unitaires","A - Analyste","Mutation sortie - Patrimoine {JCSSUDA-566} - [SUPOC-102277]",0.25,null,null,null,null,null,null,null,null,null,0.25,null,null,null,null,null,null,null,null,null,null,null,null,null,null,null,null,null,null,null,null,null,"PF","SUPOC-102277","JCSSUDA-566"]
["GSEN","E-Transverse","TV-PSI - Perturbations SI","TV-PSI-001 - Perturbations liées au SI AGORA","TV-PSI-001-AV-001 - Problèmes techniques","09 - N/A","N/A","A - Analyste","[SUPOC-102277] (PC-PF maintenance - Analyse {TANDEM})",0.75,null,null,null,null,null,null,null,null,null,0.5,0.25,null,null,null,null,null,null,null,null,null,null,null,null,null,null,null,null,null,null,null,null,"PF","SUPOC-102277","TANDEM"]
["GSEN","E-Transverse","TV-PSI - Perturbations SI","TV-PSI-001 - Perturbations liées au SI AGORA","TV-PSI-001-AV-001 - Problèmes techniques","09 - N/A","N/A","A - Analyste","[SUPOC-103679] (PC-PF maintenance - Analyse {TANDEM})",1,null,null,null,null,null,null,null,null,null,null,null,null,null,0.25,null,null,0.75,null,null,null,null,null,null,null,null,null,null,null,null,null,null,"PF","SUPOC-103679","TANDEM"]
["HMAR","E-Transverse","TV-PSI - Perturbations SI","TV-PSI-001 - Perturbations liées au SI AGORA","TV-PSI-001-AV-001 - Problèmes techniques","03 - Réalisation","Développements et tests unitaires","AP - Analyste Programmeur","[SUPOC-102277] Modification et test {MIR LOT2} (il fonctionne très lentement)",0.13,null,null,null,null,null,null,null,null,null,null,null,null,null,0.13,null,null,null,null,null,null,null,null,null,null,null,null,null,null,null,null,null,"PF","SUPOC-102277","MIR LOT2"]
["ISOR","E-Transverse","TV-PSI - Perturbations SI","TV-PSI-001 - Perturbations liées au SI AGORA","TV-PSI-001-AV-001 - Problèmes techniques","09 - N/A","N/A","AP - Analyste Programmeur","[SUPOC-105792] / PF-PR001 - {MIR}",0.25,null,null,null,null,null,null,null,null,null,null,null,null,null,null,null,null,null,null,null,null,null,null,null,null,0.25,null,null,null,null,null,null,"EMA","SUPOC-105792","MIR"]
["JDUQ","E-Transverse","TV-PSI - Perturbations SI","TV-PSI-001 - Perturbations liées au SI AGORA","TV-PSI-001-AV-001 - Problèmes techniques","03 - Réalisation","Développements et tests unitaires","AP - Analyste Programmeur","[SUPOC-102277] (project impactée {MIR LOT2 et MIR LOT3}) Tout fonctionne très lentement",0.375,null,null,null,null,null,null,null,null,null,null,0.125,null,0.125,null,null,null,0.125,null,null,null,null,null,null,null,null,null,null,null,null,null,null,"PF","SUPOC-102277","MIR LOT2 et MIR LOT3"]
["JMAR","E-Transverse","TV-PSI - Perturbations SI","TV-PSI-001 - Perturbations liées au SI AGORA","TV-PSI-001-AV-001 - Problèmes techniques","03 - Réalisation","Développements et tests unitaires","AP - Analyste Programmeur","[SUPOC-102277] / PF {Sirugue lot 1}",0.75,null,null,null,null,null,null,null,null,null,null,0.25,null,null,null,null,null,null,null,null,0.5,null,null,null,null,null,null,null,null,null,null,null,"PV","SUPOC-102277","Sirugue lot 1"]
["JMAR","E-Transverse","TV-PSI - Perturbations SI","TV-PSI-001 - Perturbations liées au SI AGORA","TV-PSI-001-AV-001 - Problèmes techniques","09 - N/A","N/A","AP - Analyste Programmeur","[SUPOC-105792] / PF {MIR}",0.2,null,null,null,null,null,null,null,null,null,null,null,null,null,null,null,null,null,null,null,null,null,null,null,null,0.2,null,null,null,null,null,null,"PV","SUPOC-105792","MIR"]
["LDEP","E-Transverse","TV-PSI - Perturbations SI","TV-PSI-001 - Perturbations liées au SI AGORA","TV-PSI-001-AV-001 - Problèmes techniques","09 - N/A","N/A","AP - Analyste Programmeur","[SUPOC-102277] (PV-PR006 - {CD-RCO})",0.125,null,null,null,null,null,null,null,null,null,null,0.125,null,null,null,null,null,null,null,null,null,null,null,null,null,null,null,null,null,null,null,null,"PV","SUPOC-102277","CD-RCO"]
["LPOL","E-Transverse","TV-PSI - Perturbations SI","TV-PSI-001 - Perturbations liées au SI AGORA","TV-PSI-001-AV-001 - Problèmes techniques","03 - Réalisation","Développements et tests unitaires","AP - Analyste Programmeur","[SUPOC-102277] (project impactée {MIR LOT2 et MIR LOT3}) Tout fonctionne très lentement",0.75,null,null,null,null,null,null,null,null,null,0.125,0.375,null,null,0.25,null,null,null,null,null,null,null,null,null,null,null,null,null,null,null,null,null,"PF","SUPOC-102277","MIR LOT2 et MIR LOT3"]
["LPOL","E-Transverse","TV-PSI - Perturbations SI","TV-PSI-001 - Perturbations liées au SI AGORA","TV-PSI-001-AV-001 - Problèmes techniques","09 - N/A","N/A","AP - Analyste Programmeur","[SUPOC-103679] (project impactée {MIR LOT2 et MIR LOT3}. Imposible test, impossible BBDD)",0.25,null,null,null,null,null,null,null,null,null,null,null,null,null,null,null,null,0.25,null,null,null,null,null,null,null,null,null,null,null,null,null,null,"PF","SUPOC-103679","MIR LOT2 et MIR LOT3"]
["MMAR","E-Transverse","TV-PSI - Perturbations SI","TV-PSI-001 - Perturbations liées au SI AGORA","TV-PSI-001-AV-001 - Problèmes techniques","03 - Réalisation","Développements et tests unitaires","AP - Analyste Programmeur","[SUPOC-102277] (project impactée {MIR LOT2 et MIR LOT3}) Tout fonctionne très lentement",0.30000000000000004,null,null,null,null,null,null,null,null,null,0.1,0.1,null,null,0.1,null,null,null,null,null,null,null,null,null,null,null,null,null,null,null,null,null,"PF","SUPOC-102277","MIR LOT2 et MIR LOT3"]
["MMAR","E-Transverse","TV-PSI - Perturbations SI","TV-PSI-001 - Perturbations liées au SI AGORA","TV-PSI-001-AV-001 - Problèmes techniques","03 - Réalisation","Développements et tests unitaires","AP - Analyste Programmeur","[SUPOC-103679]  (project impactée {MIR LOT2 et MIR LOT3}) (imposible test, impossible BBDD)",0.1,null,null,null,null,null,null,null,null,null,null,null,null,null,null,null,null,0.1,null,null,null,null,null,null,null,null,null,null,null,null,null,null,"PF","SUPOC-103679","MIR LOT2 et MIR LOT3"]
["MPAR","E-Transverse","TV-PSI - Perturbations SI","TV-PSI-001 - Perturbations liées au SI AGORA","TV-PSI-001-AV-001 - Problèmes techniques","09 - N/A","N/A","AP - Analyste Programmeur","[SUPOC-102277] - PV-PR004-001 - Campagne {GIP Lot2} Metadonnées - Solution: une réinstallation d'éclipse - ",0.37,null,null,null,null,null,null,null,null,null,null,0.37,null,null,null,null,null,null,null,null,null,null,null,null,null,null,null,null,null,null,null,null,"PV","SUPOC-102277","GIP Lot2"]
["MPER","E-Transverse","TV-PSI - Perturbations SI","TV-PSI-001 - Perturbations liées au SI AGORA","TV-PSI-001-AV-001 - Problèmes techniques","03 - Réalisation","Développements et tests unitaires","AP - Analyste Programmeur","Création et test Module {MIR lot.3}.[SUPOC-102277]",0.125,null,null,null,null,null,null,null,null,null,null,null,null,null,0.125,null,null,null,null,null,null,null,null,null,null,null,null,null,null,null,null,null,"PF","SUPOC-102277","MIR lot.3"]
["MPER","E-Transverse","TV-PSI - Perturbations SI","TV-PSI-001 - Perturbations liées au SI AGORA","TV-PSI-001-AV-001 - Problèmes techniques","03 - Réalisation","Développements et tests unitaires","AP - Analyste Programmeur","Test Module {MIR lot.3}.[SUPOC-103679]",0.25,null,null,null,null,null,null,null,null,null,null,null,null,null,null,null,null,0.25,null,null,null,null,null,null,null,null,null,null,null,null,null,null,"PF","SUPOC-103679","MIR lot.3"]
["MPER","E-Transverse","TV-PSI - Perturbations SI","TV-PSI-001 - Perturbations liées au SI AGORA","TV-PSI-001-AV-001 - Problèmes techniques","03 - Réalisation","Développements et tests unitaires","AP - Analyste Programmeur","Test Module {MIR lot.3}.[SUPOC-104234]",0.1,null,null,null,null,null,null,null,null,null,null,null,null,null,null,null,null,null,0.1,null,null,null,null,null,null,null,null,null,null,null,null,null,"PF","SUPOC-104234","MIR lot.3"]
["MPER","E-Transverse","TV-PSI - Perturbations SI","TV-PSI-001 - Perturbations liées au SI AGORA","TV-PSI-001-AV-001 - Problèmes techniques","03 - Réalisation","Développements et tests unitaires","AP - Analyste Programmeur","Test Module {MIR lot.3}.[SUPOC-105792]",0.25,null,null,null,null,null,null,null,null,null,null,null,null,null,null,null,null,null,null,null,null,null,null,null,null,0.25,null,null,null,null,null,null,"PF","SUPOC-105792","MIR lot.3"]
["PDUR","E-Transverse","TV-PSI - Perturbations SI","TV-PSI-001 - Perturbations liées au SI AGORA","TV-PSI-001-AV-001 - Problèmes techniques","09 - N/A","N/A","AP - Analyste Programmeur","Lenteurs CITRIX [SUPOC-102277]  sur résolution {DEFAUTPF-4264}",0.375,null,null,null,null,null,null,null,null,null,0.125,0.25,null,null,null,null,null,null,null,null,null,null,null,null,null,null,null,null,null,null,null,null,"PF","SUPOC-102277","DEFAUTPF-4264"]
["PDUR","E-Transverse","TV-PSI - Perturbations SI","TV-PSI-001 - Perturbations liées au SI AGORA","TV-PSI-001-AV-001 - Problèmes techniques","09 - N/A","N/A","AP - Analyste Programmeur","[SUPOC-105792] : indisponibilité base E77 : pas de test TP ni TNR (pas de base perso) pour {DBI lot 4}",0.75,null,null,null,null,null,null,null,null,null,null,null,null,null,null,null,null,null,null,null,null,null,null,null,null,0.75,null,null,null,null,null,null,"PF","SUPOC-105792","DBI lot 4"]
["RGAR","E-Transverse","TV-PSI - Perturbations SI","TV-PSI-001 - Perturbations liées au SI AGORA","TV-PSI-001-AV-001 - Problèmes techniques","09 - N/A","N/A","AP - Analyste Programmeur","[SUPOC-102277] - {LURA}",0.4,null,null,null,null,null,null,null,null,null,null,0.4,null,null,null,null,null,null,null,null,null,null,null,null,null,null,null,null,null,null,null,null,"RGCU","SUPOC-102277","LURA"]
["RPAL","E-Transverse","TV-PSI - Perturbations SI","TV-PSI-001 - Perturbations liées au SI AGORA","TV-PSI-001-AV-001 - Problèmes techniques","04 - Tests d'intégration","Exécution des tests","AP - Analyste Programmeur","[SUPOC-102277] {Sirugue Lot 1}",0.33,null,null,null,null,null,null,null,null,null,null,0.13,null,null,null,null,null,null,null,null,null,null,null,null,null,0.2,null,null,null,null,null,null,"Autre","SUPOC-102277","Sirugue Lot 1"]
["RPER","E-Transverse","TV-PSI - Perturbations SI","TV-PSI-001 - Perturbations liées au SI AGORA","TV-PSI-001-AV-001 - Problèmes techniques","09 - N/A","N/A","AP - Analyste Programmeur","[SUPOC-102277] {projet exemple} - Solution: une réinstallation d'éclipse (Movalnsa)",0.37,null,null,null,null,null,null,null,null,null,null,0.37,null,null,null,null,null,null,null,null,null,null,null,null,null,null,null,null,null,null,null,null,"PV","SUPOC-102277","projet exemple"]
["SBEN","E-Transverse","TV-PSI - Perturbations SI","TV-PSI-001 - Perturbations liées au SI AGORA","TV-PSI-001-AV-001 - Problèmes techniques","09 - N/A","N/A","AP - Analyste Programmeur","[SUPOC-103679] - TU {SIRUGUE}",3,null,null,null,null,null,null,null,null,null,0.25,0.25,null,null,0.5,null,null,0.75,1,0.25,null,null,null,null,null,null,null,null,null,null,null,null,"PF","SUPOC-103679","SIRUGUE"]
["SBEN","E-Transverse","TV-PSI - Perturbations SI","TV-PSI-001 - Perturbations liées au SI AGORA","TV-PSI-001-AV-001 - Problèmes techniques","09 - N/A","N/A","AP - Analyste Programmeur","[SUPOC-105792] - TI {SIRUGUE}",0.75,null,null,null,null,null,null,null,null,null,null,null,null,null,null,null,null,null,null,null,null,null,null,null,null,0.75,null,null,null,null,null,null,"PF","SUPOC-105792","SIRUGUE"]
["SDET","E-Transverse","TV-PSI - Perturbations SI","TV-PSI-001 - Perturbations liées au SI AGORA","TV-PSI-001-AV-001 - Problèmes techniques","09 - N/A","N/A","AP - Analyste Programmeur","[SUPOC-103679]",0.75,null,null,null,null,null,null,null,null,null,null,null,null,null,null,null,null,null,0.75,null,null,null,null,null,null,null,null,null,null,null,null,null,"PV","SUPOC-103679"]
["SDET","E-Transverse","TV-PSI - Perturbations SI","TV-PSI-001 - Perturbations liées au SI AGORA","TV-PSI-001-AV-001 - Problèmes techniques","09 - N/A","N/A","AP - Analyste Programmeur","[SUPOC-105792] + pb eclipse",0.5,null,null,null,null,null,null,null,null,null,null,null,null,null,null,null,null,null,null,null,null,null,null,null,null,0.5,null,null,null,null,null,null,"PV","SUPOC-105792"]
["SLEC","E-Transverse","TV-PSI - Perturbations SI","TV-PSI-001 - Perturbations liées au SI AGORA","TV-PSI-001-AV-001 - Problèmes techniques","03 - Réalisation","Développements et tests unitaires","AP - Analyste Programmeur","[SUPOC-102277] (projet {SIRUGUE})",0.25,null,null,null,null,null,null,null,null,null,0.25,null,null,null,null,null,null,null,null,null,null,null,null,null,null,null,null,null,null,null,null,null,"PF","SUPOC-102277","SIRUGUE"]
["SLEC","E-Transverse","TV-PSI - Perturbations SI","TV-PSI-001 - Perturbations liées au SI AGORA","TV-PSI-001-AV-001 - Problèmes techniques","09 - N/A","N/A","AP - Analyste Programmeur","[SUPOC-103679] (projet {SIRUGUE}",0.75,null,null,null,null,null,null,null,null,null,null,null,null,null,null,null,null,null,0.75,null,null,null,null,null,null,null,null,null,null,null,null,null,"PF","SUPOC-103679","SIRUGUE"]
["TBON","E-Transverse","TV-PSI - Perturbations SI","TV-PSI-001 - Perturbations liées au SI AGORA","TV-PSI-001-AV-001 - Problèmes techniques","03 - Réalisation","Développements et tests unitaires","AP - Analyste Programmeur","probleme de connexion sur base M70, M46 une demande a été faite à : agora_celluleassistancepostedetravail.blf@agora.msa.fr",2,null,null,null,null,null,null,null,null,null,null,null,null,0.5,null,null,null,0.5,null,null,null,1,null,null,null,null,null,null,null,null,null,null,"EMA","p"]
["TBON","E-Transverse","TV-PSI - Perturbations SI","TV-PSI-001 - Perturbations liées au SI AGORA","TV-PSI-001-AV-001 - Problèmes techniques","03 - Réalisation","Développements et tests unitaires","AP - Analyste Programmeur","problème d'utilisation de NS_DESIGN nottament d'azccès aux fenêtres;  supoc d'ouvert à ce sujet SUPOC-105257",2,null,null,null,null,null,null,null,null,null,null,null,null,null,1,null,null,null,null,null,null,null,null,null,1,null,null,null,null,null,null,null,"EMA","p"]
["VVAL","E-Transverse","TV-PSI - Perturbations SI","TV-PSI-001 - Perturbations liées au SI AGORA","TV-PSI-001-AV-001 - Problèmes techniques","09 - N/A","N/A","AP - Analyste Programmeur","RGCU: [SUPOC-102277] {projet exemple} - Solution: une réinstallation d'éclipse. ",0.3,null,null,null,null,null,null,null,null,null,null,null,null,0.3,null,null,null,null,null,null,null,null,null,null,null,null,null,null,null,null,null,null,"PV","SUPOC-102277","projet exemple"]
["YPER","E-Transverse","TV-PSI - Perturbations SI","TV-PSI-001 - Perturbations liées au SI AGORA","TV-PSI-001-AV-001 - Problèmes techniques","03 - Réalisation","Développements et tests unitaires","AP - Analyste Programmeur","[SUPOC-102277] - {SIRUGUE Lot1} (Test unitaires)",0.76,null,null,null,null,null,null,null,null,null,0.13,0.38,null,null,0.25,null,null,null,null,null,null,null,null,null,null,null,null,null,null,null,null,null,"PF","SUPOC-102277","SIRUGUE Lot1"]
["YPER","E-Transverse","TV-PSI - Perturbations SI","TV-PSI-001 - Perturbations liées au SI AGORA","TV-PSI-001-AV-001 - Problèmes techniques","03 - Réalisation","Développements et tests unitaires","AP - Analyste Programmeur","[SUPOC-103679] - {SIRUGUE Lot1} (Test unitaires)",1.8900000000000001,null,null,null,null,null,null,null,null,null,null,null,null,null,null,null,null,0.88,0.88,0.13,null,null,null,null,null,null,null,null,null,null,null,null,"PF","SUPOC-103679","SIRUGUE Lot1"]
["ZBEN","E-Transverse","TV-PSI - Perturbations SI","TV-PSI-001 - Perturbations liées au SI AGORA","TV-PSI-001-AV-001 - Problèmes techniques","01 - Gestion de la demande","Analyse d'impacts","A - Analyste","[SUPOC-102277] lenteur - impact sur projet {LURA} H3911-H3912",0.5,null,null,null,null,null,null,null,null,null,0.25,0.25,null,null,null,null,null,null,null,null,null,null,null,null,null,null,null,null,null,null,null,null,"PV","SUPOC-102277","LURA"]
["ZBEN","E-Transverse","TV-PSI - Perturbations SI","TV-PSI-001 - Perturbations liées au SI AGORA","TV-PSI-001-AV-001 - Problèmes techniques","04 - Tests d'intégration","Exécution des tests","A - Analyste","[SUPOC-104234] lenteur Glink - impact sur projet {LURA} H3911-H3912",0.6,null,null,null,null,null,null,null,null,null,null,null,null,null,null,null,null,null,0.35,null,0.25,null,null,null,null,null,null,null,null,null,null,null,"PV","SUPOC-104234","LURA"]
["CRA_","E-Transverse","TV-PSI - Perturbations SI","TV-PSI-001 - Perturbations liées au SI AGORA","TV-PSI-001-AV-001 - Problèmes techniques","09 - N/A","N/A","AP - Analyste Programmeur","[SUPOC-102277] - {LURA} (hrdgesdem, hrdecgrepdem)",0.4,null,null,null,null,null,null,null,null,null,null,0.4,null,null,null,null,null,null,null,null,null,null,null,null,null,null,null,null,null,null,null,null,"PF","SUPOC-102277","LURA"]
["CRA_","E-Transverse","TV-PSI - Perturbations SI","TV-PSI-001 - Perturbations liées au SI AGORA","TV-PSI-001-AV-001 - Problèmes techniques","09 - N/A","N/A","AP - Analyste Programmeur","[SUPOC-105792] / PF-PR001 - {MIR}",0.25,null,null,null,null,null,null,null,null,null,null,null,null,null,null,null,null,null,null,null,null,null,null,null,null,0.25,null,null,null,null,null,null,"PF","SUPOC-105792","MIR"]
["CRA_","E-Transverse","TV-PSI - Perturbations SI","TV-PSI-001 - Perturbations liées au SI AGORA","TV-PSI-001-AV-001 - Problèmes techniques","03 - Réalisation","Développements et tests unitaires","AP - Analyste Programmeur","[SUPOC-102277] / PF {Sirugue lot 1}",0.75,null,null,null,null,null,null,null,null,null,null,0.25,null,null,null,null,null,null,null,null,0.5,null,null,null,null,null,null,null,null,null,null,null,"PF","SUPOC-102277","Sirugue lot 1"]
["CRA_","E-Transverse","TV-PSI - Perturbations SI","TV-PSI-001 - Perturbations liées au SI AGORA","TV-PSI-001-AV-001 - Problèmes techniques","09 - N/A","N/A","AP - Analyste Programmeur","[SUPOC-105792] / PF {MIR}",0.2,null,null,null,null,null,null,null,null,null,null,null,null,null,null,null,null,null,null,null,null,null,null,null,null,0.2,null,null,null,null,null,null,"PF","SUPOC-105792","MIR"]
["CRA_","E-Transverse","TV-PSI - Perturbations SI","TV-PSI-001 - Perturbations liées au SI AGORA","TV-PSI-001-AV-001 - Problèmes techniques","09 - N/A","N/A","AP - Analyste Programmeur","[SUPOC-102277] (PV-PR006 - {CD-RCO}",0.125,null,null,null,null,null,null,null,null,null,null,0.125,null,null,null,null,null,null,null,null,null,null,null,null,null,null,null,null,null,null,null,null,"PF","SUPOC-102277","CD-RCO"]
["CRA_","E-Transverse","TV-PSI - Perturbations SI","TV-PSI-001 - Perturbations liées au SI AGORA","TV-PSI-001-AV-001 - Problèmes techniques","03 - Réalisation","Développements et tests unitaires","AP - Analyste Programmeur","Création et test Module {MIR lot.3}.[SUPOC-102277]",0.125,null,null,null,null,null,null,null,null,null,null,null,null,null,0.125,null,null,null,null,null,null,null,null,null,null,null,null,null,null,null,null,null,"PF","SUPOC-102277","MIR lot.3"]
["CRA_","E-Transverse","TV-PSI - Perturbations SI","TV-PSI-001 - Perturbations liées au SI AGORA","TV-PSI-001-AV-001 - Problèmes techniques","03 - Réalisation","Développements et tests unitaires","AP - Analyste Programmeur","Test Module {MIR lot.3}.[SUPOC-103679]",0.25,null,null,null,null,null,null,null,null,null,null,null,null,null,null,null,null,0.25,null,null,null,null,null,null,null,null,null,null,null,null,null,null,"PF","SUPOC-103679","MIR lot.3"]
["CRA_","E-Transverse","TV-PSI - Perturbations SI","TV-PSI-001 - Perturbations liées au SI AGORA","TV-PSI-001-AV-001 - Problèmes techniques","03 - Réalisation","Développements et tests unitaires","AP - Analyste Programmeur","Test Module {MIR lot.3}.[SUPOC-104234]",0.1,null,null,null,null,null,null,null,null,null,null,null,null,null,null,null,null,null,0.1,null,null,null,null,null,null,null,null,null,null,null,null,null,"PF","SUPOC-104234","MIR lot.3"]
["CRA_","E-Transverse","TV-PSI - Perturbations SI","TV-PSI-001 - Perturbations liées au SI AGORA","TV-PSI-001-AV-001 - Problèmes techniques","03 - Réalisation","Développements et tests unitaires","AP - Analyste Programmeur","Test Module {MIR lot.3}.[SUPOC-105792]",0.25,null,null,null,null,null,null,null,null,null,null,null,null,null,null,null,null,null,null,null,null,null,null,null,null,0.25,null,null,null,null,null,null,"Autre","SUPOC-105792","MIR lot.3"]
["CRA_","E-Transverse","TV-PSI - Perturbations SI","TV-PSI-001 - Perturbations liées au SI AGORA","TV-PSI-001-AV-001 - Problèmes techniques","09 - N/A","N/A","AP - Analyste Programmeur","[SUPOC-102277] - {LURA}",0.4,null,null,null,null,null,null,null,null,null,null,0.4,null,null,null,null,null,null,null,null,null,null,null,null,null,null,null,null,null,null,null,null,"Autre","SUPOC-102277","LURA"]
["CRA_","E-Transverse","TV-PSI - Perturbations SI","TV-PSI-001 - Perturbations liées au SI AGORA","TV-PSI-001-AV-001 - Problèmes techniques","09 - N/A","N/A","AP - Analyste Programmeur","[SUPOC-102277] {projet exemple}- Solution: une réinstallation d'éclipse (Movalnsa)",0.37,null,null,null,null,null,null,null,null,null,null,0.37,null,null,null,null,null,null,null,null,null,null,null,null,null,null,null,null,null,null,null,null,"Autre","SUPOC-102277","projet exemple"]

{"sheet":"Octobre","index":1,"n_rows":100,"n_cols":12,"rows_kept":100,"cut":false,"hidden":false,"merged":[[94,0,94,3],[95,1,95,3],[96,1,96,3],[97,1,97,3],[98,1,98,3],[78,0,78,2],[79,0,79,3],[83,6,83,11],[85,0,85,3],[88,6,88,11],[90,0,90,3],[59,6,59,11],[67,0,67,2],[68,0,68,3],[72,6,72,11],[74,0,74,2],[76,0,76,2],[37,0,37,2],[38,0,38,3],[42,6,42,11],[45,0,45,2],[54,0,54,2],[55,0,55,3],[1,1,1,3],[6,6,6,11],[9,0,9,2],[14,0,14,2],[26,0,26,2],[28,0,28,2]]}
[null,null,null,null,"Nb profils","Nb jours impactés"]
[null,"TOTAUX GENERAUX",null,null,{"$f":"SUM(E39,E56,E69,E80,E86,E91)","v":48},{"$f":"SUM(F39,F56,F69,F80,F86,F91)","v":29.355}]
[]
[]
[]
["SUPOC-102277"]
["DOMAINE","PROJET","ROLE","Id","Nb profils","Nb jours impactés","Journées concernées"]
["EMA-CMCD",null,"Analyste","CGAL",1,0,"2016-10-11"]
["EMA-CMCD",null,"Analyste","FFIA",1,0.25,"2016-10-11"]
["SOUS TOTAL",null,null,null,{"$f":"SUM(E8:E9)","v":2},{"$f":"SUM(F8:F9)","v":0.25}]
["PF","JCSSUDA-450","Analyste","CMOR",1,2.25,"2016-10-11","2016-10-14","2016-10-17","2016-10-18","2016-10-19"]
["PF","TAUX DEMAT","Analyste ","DLEC",1,0.75,"2016-10-11","2016-10-12"]
["PF","JCSSUDA-566","Analyste","GSCH",1,0.25,"2016-10-10"]
["PF","TANDEM","Analyste","GSEN",1,0.75,"2016-10-10","2016-10-11"]
["SOUS TOTAL",null,null,null,{"$f":"SUM(E11:E14)","v":4},{"$f":"SUM(F11:F14)","v":4}]
["PF","MIR LOT 2","Analyste Programmeur","AMER",1,0.76,"2016-10-10","2016-10-11","2014-10-14"]
["PF","MIR LOT 2","Analyste Programmeur","HMAR",1,0.13,"2016-10-14"]
["PF","MIR LOT 2;MIR LOT 3","Analyste Programmeur","JDUQ",1,0.375,"2016-10-11","2016-10-13","2016-10-17"]
["PF","SIRUGUE LOT 1","Analyste Programmeur","JMAR",1,0.75,"2016-10-11","2016-10-20"]
["PF","MIR LOT 2;MIR LOT 3","Analyste Programmeur","LPOL",1,0.75,"2016-10-10","2016-10-11","2014-10-14"]
["PF","MIR LOT 2;MIR LOT 3","Analyste Programmeur","MMAR",1,0.3,"2016-10-10","2016-10-11","2014-10-14"]
["PF","MIR LOT 3","Analyste Programmeur","MPER",1,0.125,"2016-10-14"]
["PF","DEFAUTPF-4264","Analyste Programmeur","PDUR",1,0.375,"2016-10-10","2016-10-11"]
["PF","SIRUGUE LOT 1","Analyste Programmeur","RPAL",1,0.33,"2016-10-11","2016-10-25"]
["PF","SIRUGUE LOT 1","Analyste Programmeur","SLEC",1,0.25,"2016-10-10"]
["PF","SIRUGUE LOT 1","Analyste Programmeur","YPER",1,0.76,"2016-10-10","2016-10-11","2014-10-14"]
["SOUS TOTAL",null,null,null,{"$f":"SUM(E16:E26)","v":11},{"$f":"SUM(F16:F26)","v":4.9049999999999994}]
["PV","LURA","Analyste  ","ZBEN",1,0.5,"2016-10-10","2016-10-11"]
["SOUS TOTAL",null,null,null,{"$f":"SUM(E28)","v":1},{"$f":"SUM(F28)","v":0.5}]
["PV","CDRCO LOT BALAI","Analyste Programmeur","CPES",1,0.75,"2016-10-10","2016-10-11"]
["PV","LURA AVPF LOT 2","Analyste Programmeur","ECAL",1,0.75,"2016-10-11","2016-10-14","2016-10-21"]
["PV",null,"Analyste Programmeur","FFRA",1,0.4,"2016-10-11"]
["PV","CDRCO","Analyste Programmeur","LDEP",1,0.125,"2016-10-11"]
["PV",null,"Analyste Programmeur","MPAR",1,0.37,"2016-10-11"]
["PV","LURA","Analyste Programmeur","RGAR",1,0.4,"2016-10-11"]
["PV",null,"Analyste Programmeur","RPER",1,0.37,"2016-10-11"]
["PV",null,"Analyste Programmeur","VVAL",1,0.3,"2016-10-13"]
["SOUS TOTAL",null,null,null,{"$f":"SUM(E30:E37)","v":8},{"$f":"SUM(F30:F37)","v":3.4649999999999999}]
["TOTAL GENERAL",null,null,null,{"$f":"SUM(E10,E15,E27,E29,E38)","v":26},{"$f":"SUM(F10,F15,F27,F29,F38)","v":13.12}]
[]
[]
["SUPOC-103679"]
["DOMAINE","PROJET","ROLE","Id","Nb profils","Nb jours impactés","Journées concernées"]
["PF","TAUX DEMAT","Analyste","DLEC",1,1,"2016-10-14","2016-10-17"]
["PF","TANDEM","Analyste","GSEN",1,1,"2016-10-14","2016-10-17"]
["SOUS TOTAL",null,null,null,{"$f":"SUM(E44:E45)","v":2},{"$f":"SUM(F44:F45)","v":2}]
["PF","MIR LOT 2","Analyste Programmeur","AMER",1,0.13,"2016-10-17"]
["PF","MIR LOT 2;MIR LOT 3","Analyste Programmeur","LPOL",1,0.25,"2016-10-17"]
["PF","MIR LOT 2;MIR LOT 3","Analyste Programmeur","MMAR",1,0.1,"2016-10-17"]
["PF","MIR LOT 3","Analyste Programmeur","MPER",1,0.25,"2016-10-17"]
["PF","SIRUGUE LOT 1","Analyste Programmeur","SBEN",1,3,"2016-10-10","2016-10-11","2014-10-14","2016-10-17","2016-10-18","2016-10-19"]
["PF","LOGEMENT ISF","Analyste Programmeur","SDET",1,0.75,"2016-10-18"]
["PF","SIRUGUE LOT 1","Analyste Programmeur","SLEC",1,0.75,"2016-10-18"]
["PF","SIRUGUE LOT 1","Analyste Programmeur","YPER",1,1.89,"2016-10-17","2016-10-18","2016-10-19"]
["SOUS TOTAL",null,null,null,{"$f":"SUM(E47:E54)","v":8},{"$f":"SUM(F47:F54)","v":7.12}]
["TOTAL GENERAL",null,null,null,{"$f":"SUM(E46,E55)","v":10},{"$f":"SUM(F46,F55)","v":9.120000000000001}]
[]
[]
["SUPOC-105792"]
["DOMAINE","PROJET","ROLE","Id","Nb profils","Nb jours impactés","Journées concernées"]
["PF","MIR LOT 3","Analyste Programmeur","AMER",1,0.59,"2016-10-25","2016-10-26"]
["PF",null,"Analyste Programmeur","ISOR",1,0.25,"2016-10-25"]
["PF","MIR","Analyste Programmeur","JMAR",1,0.2,"2016-10-25"]
["PF","MIR LOT 3","Analyste Programmeur","MPER",1,0.25,"2016-10-25"]
["PF","DBI LOT 4","Analyste Programmeur","PDUR",1,0.75,"2016-10-25"]
["PF","SIRUGUE LOT 1","Analyste Programmeur","SBEN",1,0.75,"2016-10-25"]
["PF","LOGEMENT ISF","Analyste Programmeur","SDET",1,0.5,"2016-10-25"]
["SOUS TOTAL",null,null,null,{"$f":"SUM(E61:E67)","v":7},{"$f":"SUM(F61:F67)","v":3.29}]
["TOTAL GENERAL",null,null,null,{"$f":"E68","v":7},{"$f":"F68","v":3.29}]
[]
[]
["SUPOC-104234"]
["DOMAINE","PROJET","ROLE","Id","Nb profils","Nb jours impactés","Journées concernées"]
["PF","MIR LOT 3","Analyste Programmeur","MPER",1,0.1,"2016-10-18"]
["SOUS TOTAL",null,null,null,{"$f":"SUM(E74)","v":1},{"$f":"SUM(F74)","v":0.1}]
["PV","LURA","Analyste Programmeur","CPES",1,0.5,"2016-10-18","2016-10-20"]
["SOUS TOTAL",null,null,null,{"$f":"SUM(E76)","v":1},{"$f":"SUM(F76)","v":0.5}]
["PV","LURA","Analyste  ","ZBEN",1,0.6,"2016-10-18","2016-10-20"]
["SOUS TOTAL",null,null,null,{"$f":"SUM(E78)","v":1},{"$f":"SUM(F78)","v":0.6}]
["TOTAL GENERAL",null,null,null,{"$f":"SUM(E75,E77,E79)","v":3},{"$f":"SUM(F75,F77,F79)","v":1.2}]
[]
[]
["SUPOC-1O1547"]
["DOMAINE","PROJET","ROLE","Id","Nb profils","Nb jours impactés","Journées concernées"]
["EMA-CMCD",null,"Analyste","FFIA",1,0.625,"2016-10-05","2016-10-07"]
["TOTAL GENERAL",null,null,null,{"$f":"E85","v":1},{"$f":"F85","v":0.625}]
[]
["SUPOC-105257"]
["DOMAINE","PROJET","ROLE","Id","Nb profils","Nb jours impactés","Journées concernées"]
["EMA-CMCD",null,"Analyste Programmeur","TBON",1,2,"2014-10-14","2016-10-24"]
["TOTAL GENERAL",null,null,null,{"$f":"E90","v":1},{"$f":"F90","v":2}]
[]
[]
[]
["Synthèse par Application",null,null,null,"Nb profils","Nb jours impactés"]
[null,"PV",null,null,{"$f":"SUMIF(A7:D91,B96,E7:E91)","v":11},{"$f":"SUMIF(A7:D91,B96,F7:F91)","v":5.0649999999999995}]
[null,"PF",null,null,{"$f":"SUMIF(A7:D91,B97,E7:E91)","v":33},{"$f":"SUMIF(A7:D91,B97,F7:F91)","v":21.414999999999999}]
[null,"EMA-CMCD",null,null,{"$f":"SUMIF(A7:D91,B98,E7:E91)","v":4},{"$f":"SUMIF(A7:D91,B98,F7:F91)","v":2.875}]
[null,"RGCU",null,null,{"$f":"SUMIF(A7:D91,B99,E7:E91)","v":0},{"$f":"SUMIF(A7:D91,B99,F7:F91)","v":0}]
[null,null,null,null,{"$f":"SUM(E96:E99)","v":48},{"$f":"SUM(F96:F99)","v":29.354999999999997}]

{"sheet":"Feuil2","index":2,"n_rows":0,"n_cols":0,"rows_kept":0,"cut":false,"hidden":false,"merged":[]}

{"sheet":"Feuil3","index":3,"n_rows":0,"n_cols":0,"rows_kept":0,"cut":false,"hidden":false,"merged":[]}